bitfinex-derivatives/quotes_BNBF0:USTF0_20250112
["timestamp","ask_amount","ask_price","bid_price","bid_amount"]
[1736670802805,1.08027967,693.92,692.82,3.01090928]
[1736670803497,1.08027967,693.96,692.82,3.01090928]
[1736670804304,1.08027967,693.96,692.73,4.83619269]
[1736670805299,1.08027967,693.97,692.73,4.83619269]
[1736670806304,1.08027967,693.96,692.73,6.13211524]
[1736670806603,1.08027967,693.96,692.74,1.82528341]
[1736670806806,1.08027967,693.96,692.74,2.71249977]
[1736670807107,1.08027967,693.96,692.74,5.72340905]
[1736670807302,1.08027967,693.97,692.75,2.71249977]
[1736670808408,1.08027967,693.96,692.75,2.71249977]
[1736670811709,1.08027967,693.96,692.74,2.71249977]
[1736670812614,1.08027967,693.95,692.74,2.71249977]
[1736670812817,1.08027967,693.95,692.73,2.71249977]
[1736670813115,1.08027967,693.91,692.8,1.29592255]
[1736670814210,1.08027967,694.1,692.74,3.01090928]
[1736670814211,1.08027967,694.03,692.91,1.29592255]
[1736670814416,0.28817613,694.02,692.91,1.29592255]
[1736670815111,0.28817613,694.02,692.2,1.29592255]
[1736670815308,0.28817613,694.02,692.22,0.28892548]
[1736670816812,0.26506754,694.01,692.22,0.28892548]
[1736670817037,0.26507672,694.0,692.22,0.28892548]
[1736670817215,0.26507672,693.99,692.22,0.28892548]
[1736670817411,0.28817613,694.02,692.22,0.28892548]
[1736670824819,1.50637395,694.01,692.22,0.28892548]
[1736670825019,0.28818859,693.99,692.22,0.28892548]
[1736670834523,0.28818859,693.99,692.29,1.29592255]
[1736670834924,0.28818859,693.99,692.3,0.28889209]
[1736670835427,0.28818859,693.99,692.3,1.58481464]
[1736670836730,0.28818859,693.99,692.35,1.29592255]
[1736670837028,0.28818859,693.99,692.36,0.28886706]
[1736670837729,0.28818859,693.99,692.36,1.58478961]
[1736670838530,0.28818859,693.99,692.36,0.28886706]
[1736670839331,0.28818859,693.99,692.38,1.29592255]
[1736670839530,0.28818859,693.99,692.39,0.28885454]
[1736670840325,0.28818859,693.99,692.4,1.29592255]
[1736670840531,0.28818859,693.99,692.41,0.2888462]
[1736670841238,0.28818859,693.99,692.42,1.29592255]
[1736670841641,0.28818859,693.99,692.43,0.28883786]
[1736670844134,0.28818859,693.99,692.44,1.29592255]
[1736670844334,0.28818859,693.99,692.45,0.28882951]
[1736670846234,0.28818859,693.99,692.54,1.29592255]
[1736670847035,0.28818859,693.99,692.56,1.29592255]
[1736670848131,0.28818859,693.99,692.55,1.29592255]
[1736670849134,0.28818859,693.99,692.57,1.29592255]
[1736670850538,0.28818859,693.99,692.58,1.29592255]
[1736670852435,0.28818859,693.99,692.54,1.82009222]
[1736670852639,0.28818859,693.99,692.54,0.88328363]
[1736670852937,0.28818859,693.99,692.54,1.82009222]
[1736670853135,0.28818859,693.99,692.5,4.83002441]
[1736670853441,0.28818859,693.99,692.51,1.17214515]
[1736670853642,0.28818859,693.99,692.52,0.28880032]
[1736670869854,0.28818859,693.99,692.55,1.29592255]
[1736670870754,0.28818859,693.99,692.54,1.29592255]
[1736670870955,0.28818859,693.99,692.54,1.58471453]
[1736670872451,0.28818859,693.99,692.55,1.29592255]
[1736670874859,0.28818859,693.99,692.54,0.28879198]
[1736670877058,0.28818859,693.99,692.56,1.29592255]
[1736670877853,0.28818859,693.99,692.56,3.11460495]
[1736670878058,0.28818859,693.99,692.57,1.8186824]
[1736670878257,1.36846826,693.99,692.58,1.29592255]
[1736670878460,1.36846826,693.99,692.58,3.11460495]
[1736670879167,1.36846826,693.99,692.59,1.29592255]
[1736670879864,1.36846826,693.99,692.59,4.29420545]
[1736670880165,1.08027967,693.97,692.62,1.29592255]
[1736670881161,1.08027967,693.96,692.63,1.29592255]
[1736670882163,0.28818859,693.99,692.61,1.29592255]
[1736670884068,0.28818859,693.99,692.65,1.29592255]
[1736670886165,0.28818859,693.99,692.7,1.29592255]
[1736670887169,0.28818859,693.99,692.6,2.9982829]
[1736670888575,0.28818859,693.99,692.54,0.28879198]
[1736670892178,1.36846826,693.99,692.54,0.28879198]
[1736670896478,0.28818859,693.99,692.54,0.28879198]
[1736670897484,1.08027967,693.92,692.75,1.29592255]
[1736670898177,1.08027967,693.97,692.67,0.88663572]
[1736670898378,1.08027967,693.97,692.64,2.70925038]
[1736670898582,1.08027967,693.97,692.64,5.70753328]
[1736670898778,1.08027967,693.97,692.65,2.70925038]
[1736670899986,1.08027967,693.98,692.65,2.70925038]
[1736670900283,1.36847241,693.98,692.64,2.70925038]
[1736670900986,1.36847241,693.98,692.64,5.70753328]
[1736670901190,1.36847241,693.98,692.65,4.00517293]
[1736670901191,1.08027967,693.97,692.65,4.00517293]
[1736670901384,1.08027967,693.97,692.66,0.88663572]
[1736670902283,0.28820104,693.96,692.66,3.88491862]
[1736670902485,0.28820104,693.96,692.67,1.82261466]
[1736670902685,0.28820104,693.96,692.67,2.70925038]
[1736670902983,1.08027967,693.95,692.67,2.70925038]
[1736670903286,0.28820935,693.94,692.67,2.70925038]
[1736670903888,0.28820935,693.94,692.74,1.29592255]
[1736670904889,1.08027967,693.93,692.73,1.29592255]
[1736670905089,0.28821766,693.92,692.73,1.29592255]
[1736670905789,0.28821766,693.92,692.69,1.29592255]
[1736670905998,0.28821766,693.92,692.69,4.29420545]
[1736670906284,0.28821766,693.92,692.7,1.82261466]
[1736670907790,0.28821766,693.92,692.68,1.82261466]
[1736670908193,0.28821766,693.92,692.67,1.29592255]
[1736670908394,0.28821766,693.92,692.72,1.29592255]
[1736670909293,0.28821766,693.92,692.7,1.29592255]
[1736670910393,0.28821766,693.92,692.66,1.29592255]
[1736670910788,0.28821766,693.92,692.66,3.11853721]
[1736670911193,1.08027967,693.82,692.66,1.82261466]
[1736670911389,1.08027967,693.82,692.65,2.9982829]
[1736670911591,1.08027967,693.82,692.56,2.70918459]
[1736670911816,0.28826335,693.81,692.5,2.70918459]
[1736670913797,0.28826335,693.81,692.46,2.70918459]
[1736670915229,0.28826335,693.81,692.36,2.70918459]
[1736670915397,0.28826335,693.81,692.36,4.00510714]
[1736670915590,0.28826335,693.81,692.37,0.88656993]
[1736670915994,0.28826335,693.81,692.37,3.88485283]
[1736670916197,0.28826335,693.81,692.38,2.70918459]
[1736670919193,0.28826335,693.81,692.37,2.70918459]
[1736670920094,0.28826335,693.81,692.45,1.29592255]
[1736670921298,0.28826335,693.81,692.48,1.29592255]
[1736670922999,0.28826335,693.81,692.5,1.29592255]
[1736670924101,0.28826335,693.81,692.6,1.29592255]
[1736670925196,0.28826335,693.81,692.64,1.29592255]
[1736670926101,0.28826335,693.81,692.56,0.88656993]
[1736670926102,0.28826335,693.81,692.63,1.29592255]
[1736670927210,0.28826335,693.81,692.62,1.29592255]
[1736670928308,0.28826335,693.81,692.64,1.29592255]
[1736670930201,0.28826335,693.81,692.62,2.70918459]
[1736670930202,0.28826335,693.81,692.65,1.29592255]
[1736670931311,1.08027967,694.32,692.65,1.29592255]
[1736670931508,0.28805576,694.31,692.65,0.88656993]
[1736670932701,0.28805576,694.31,692.65,3.88485283]
[1736670932900,0.28805576,694.31,692.66,1.82261466]
[1736670933205,0.28805576,694.31,692.66,2.70918459]
[1736670933705,0.28805576,694.31,692.7,1.29592255]
[1736670934701,0.28805576,694.31,692.69,0.88656993]
[1736670934903,0.28805576,694.31,692.68,2.70918459]
[1736670935113,0.26488812,694.3,692.68,2.70918459]
[1736670936502,0.26488812,694.3,692.61,2.70918459]
[1736670937008,0.26488812,694.3,692.62,1.29592255]
[1736670937204,0.26488812,694.3,692.62,2.18249248]
[1736670937406,0.26488812,694.3,692.62,5.18077538]
[1736670937603,0.26488812,694.3,692.63,2.70918459]
[1736670939205,0.28805576,694.31,692.63,2.70918459]
[1736670939504,0.28805576,694.31,692.56,2.70918459]
[1736670940009,0.26491989,694.3,692.56,2.70918459]
[1736670940903,1.50540735,694.29,692.56,2.70918459]
[1736670941106,1.50540735,694.29,692.54,0.28879198]
[1736670941107,0.26492703,694.28,692.54,0.28879198]
[1736670941311,1.50540735,694.29,692.54,0.28879198]
[1736670943804,0.28807236,694.27,692.54,0.28879198]
[1736670949320,0.26494098,694.26,692.54,0.28879198]
[1736670949709,0.28808481,694.24,692.54,0.28879198]
[1736670951211,0.26494191,694.23,692.54,0.28879198]
[1736670952015,0.28809726,694.21,692.54,0.28879198]
[1736670952216,0.26494191,694.2,692.54,0.28879198]
[1736670952412,0.28810971,694.18,692.54,0.28879198]
[1736670952614,0.26494191,694.17,692.54,0.28879198]
[1736670952817,0.28812216,694.15,692.54,0.28879198]
[1736670953018,0.26494191,694.14,692.54,0.28879198]
[1736670953341,0.28813461,694.12,692.54,0.28879198]
[1736670953519,0.26497264,694.11,692.54,0.28879198]
[1736670953722,0.28814707,694.09,692.54,0.28879198]
[1736670958021,0.28814707,694.09,692.59,1.29592255]
[1736670958620,0.28814707,694.09,692.6,1.29592255]
[1736670960121,0.28814707,694.09,692.56,1.29592255]
[1736670961322,0.26496697,694.08,692.56,2.70608873]
[1736670961521,0.26496655,694.07,692.56,2.70608873]
[1736670961722,0.28814707,694.09,692.56,2.70608873]
[1736670962022,0.26496655,694.08,692.56,2.70608873]
[1736670962226,0.26496655,694.08,692.67,1.29592255]
[1736670962525,0.28815537,694.07,692.67,1.29592255]
[1736670963022,0.26497143,694.06,692.67,1.29592255]
[1736670963322,0.28816367,694.05,692.67,1.29592255]
[1736670963516,0.26497143,694.04,692.67,1.29592255]
[1736670963721,0.28817198,694.03,692.67,1.29592255]
[1736670964315,0.28817198,694.03,692.6,3.88175697]
[1736670964316,0.28817198,694.03,692.61,1.82261466]
[1736670964521,0.28817198,694.03,692.6,2.9982829]
[1736670965326,0.28817198,694.03,692.59,1.82261466]
[1736670965521,0.28817198,694.03,692.57,1.82261466]
[1736670967021,0.28817198,694.03,692.54,0.28879198]
[1736670969632,0.28817198,694.03,692.54,2.99492556]
[1736670969833,1.08027967,694.01,692.6,1.29592255]
[1736670970826,1.08027967,694.01,692.57,2.17944147]
[1736670971732,0.28817198,694.03,692.66,1.29592255]
[1736670974433,0.28817198,694.03,692.68,1.29592255]
[1736670975534,0.28817198,694.03,692.69,1.29592255]
[1736670976528,0.28817198,694.03,692.73,1.29592255]
[1736670977732,0.28817198,694.03,692.67,3.11853721]
[1736670978337,0.28817198,694.03,692.68,2.9982829]
[1736670978631,0.28817198,694.03,692.68,4.82089756]
[1736670979137,1.08027967,693.99,692.68,2.9982829]
[1736670979336,0.28819274,693.98,692.68,2.9982829]
[1736670980136,1.36847241,693.98,692.65,1.29592255]
[1736670981040,1.08027967,693.96,692.66,1.29592255]
[1736670981241,0.2882052,693.95,692.66,1.29592255]
[1736670981748,1.36848487,693.95,692.66,1.29592255]
[1736670981935,1.36848487,693.95,692.66,3.11570399]
[1736670982741,1.08027967,693.92,692.67,1.29592255]
[1736670982940,1.08027967,693.92,692.67,4.29420545]
[1736670983142,1.08027967,693.92,692.68,1.81978144]
[1736670983343,0.28822181,693.91,692.68,1.81978144]
[1736670983543,0.28822181,693.91,692.69,1.29592255]
[1736670984241,0.28822181,693.91,692.7,1.29592255]
[1736670985036,0.28822181,693.91,692.7,3.11570399]
[1736670985242,0.28822181,693.91,692.71,1.29592255]
[1736670985845,0.28822181,693.91,692.72,1.29592255]
[1736670985846,1.08027967,693.9,692.72,1.29592255]
[1736670986142,0.28823012,693.89,692.72,3.11633352]
[1736670986642,0.28823012,693.89,692.73,2.18081023]
[1736670987141,0.28823012,693.89,692.73,5.17909313]
[1736670987343,0.28823012,693.89,692.74,2.70529865]
[1736670987539,1.08027967,693.87,692.74,2.70529865]
[1736670989942,1.08027967,693.87,692.74,5.70358155]
[1736670990141,1.08027967,693.87,692.75,2.70529865]
[1736670991544,1.08027967,693.87,692.74,2.70529865]
[1736670991741,1.08027967,693.86,692.74,2.70529865]
[1736670993546,1.08027967,693.87,692.74,2.70529865]
[1736670993945,1.08027967,693.87,692.74,1.82041097]
[1736670994147,0.28823012,693.89,692.83,1.29592255]
[1736670998251,0.28823012,693.89,692.73,1.29592255]
[1736670999249,0.28823012,693.89,692.54,1.58471453]
[1736670999944,0.28823012,693.89,692.54,0.28879198]
[1736671011775,0.28823012,693.89,692.17,1.29592255]
[1736671011957,0.26510911,693.88,692.17,1.29592255]
[1736671012453,0.26510911,693.88,692.12,1.29592255]
[1736671013559,0.26510911,693.88,692.09,3.00740151]
[1736671013560,1.08027967,693.85,692.09,3.00740151]
[1736671013759,1.08027967,693.85,692.07,1.29592255]
[1736671013957,0.2651461,693.84,692.07,1.29592255]
[1736671014458,0.2651461,693.84,691.75,1.29592255]
[1736671014658,1.50656416,693.83,691.77,0.28911343]
[1736671017462,0.28826335,693.81,691.77,0.28911343]
[1736671023163,0.26514998,693.8,691.77,0.28911343]
[1736671023362,0.28827582,693.78,691.77,0.28911343]
[1736671023561,0.26514998,693.77,691.77,0.28911343]
[1736671023764,0.28828828,693.75,691.77,0.28911343]
[1736671023963,0.26514998,693.74,691.77,0.28911343]
[1736671024263,0.28830075,693.72,691.77,0.28911343]
[1736671024463,0.26514415,693.71,691.77,0.28911343]
[1736671024660,0.26514415,693.71,691.92,1.29592255]
[1736671024859,1.50684684,693.7,691.92,1.29592255]
[1736671025064,0.26514415,693.69,691.92,1.29592255]
[1736671025465,0.26514415,693.69,692.01,1.29592255]
[1736671026865,0.26514415,693.69,691.99,1.29592255]
[1736671027069,0.26514415,693.69,692.0,0.28901734]
[1736671027264,0.28832153,693.67,692.0,0.28901734]
[1736671027467,0.26514732,693.66,692.0,0.28901734]
[1736671027668,0.26514732,693.66,692.01,1.29592255]
[1736671027869,0.26514732,693.66,692.02,0.28900898]
[1736671028169,0.28832984,693.65,692.02,0.28900898]
[1736671028378,0.26514732,693.64,692.02,0.28900898]
[1736671028568,0.26514732,693.64,692.02,1.58493153]
[1736671029469,0.28833816,693.63,692.02,1.58493153]
[1736671029665,0.26514732,693.62,692.02,1.58493153]
[1736671029867,0.28834647,693.61,692.02,1.58493153]
[1736671030063,0.26514732,693.6,692.02,1.58493153]
[1736671030365,0.28835479,693.59,692.02,1.58493153]
[1736671030870,0.28835479,693.59,692.03,1.29592255]
[1736671032067,0.28835479,693.59,692.02,0.28900898]
[1736671032265,1.50679247,693.58,692.02,0.28900898]
[1736671033578,0.26526814,693.57,692.02,0.28900898]
[1736671034783,0.26526814,693.57,691.18,2.98847765]
[1736671034967,0.26526814,693.57,691.2,0.28935185]
[1736671035370,1.50679247,693.58,691.2,0.28935185]
[1736671035568,0.26527236,693.57,691.2,0.28935185]
[1736671035772,1.50679247,693.58,691.2,0.28935185]
[1736671044996,0.28836726,693.56,691.2,0.28935185]
[1736671046072,0.26524704,693.55,691.2,0.28935185]
[1736671046274,0.28837973,693.53,691.2,0.28935185]
[1736671046584,0.28837973,693.53,691.29,1.29592255]
[1736671046875,0.28837973,693.53,691.31,0.28930581]
[1736671047070,0.26522962,693.52,691.31,0.28930581]
[1736671047274,0.28839221,693.5,691.31,0.28930581]
[1736671047575,0.26522962,693.49,691.31,0.28930581]
[1736671047778,0.28840468,693.47,691.31,0.28930581]
[1736671047976,0.26522962,693.46,691.52,1.29592255]
[1736671048777,0.28840468,693.47,691.57,1.29592255]
[1736671048972,0.26524931,693.46,691.57,1.29592255]
[1736671049576,0.2652447,693.45,691.58,1.29592255]
[1736671049772,0.2652447,693.44,691.58,1.29592255]
[1736671049982,0.2652447,693.43,691.58,1.29592255]
[1736671050182,0.2652447,693.42,691.58,1.29592255]
[1736671050374,0.2652447,693.41,691.58,1.29592255]
[1736671050572,0.2652447,693.4,691.56,1.29592255]
[1736671050880,0.55368266,693.39,691.58,0.28919286]
[1736671051077,0.55368682,693.38,691.58,0.28919286]
[1736671051279,0.55369098,693.37,691.59,1.29592255]
[1736671051481,0.2652447,693.36,691.59,1.29592255]
[1736671051779,0.28844628,693.37,691.59,1.29592255]
[1736671051981,0.28844628,693.37,691.61,0.28918031]
[1736671053274,0.28844628,693.37,691.66,1.29592255]
[1736671053477,0.28844628,693.37,691.67,0.28915523]
[1736671053678,0.26524926,693.36,691.67,0.28915523]
[1736671054777,0.2884546,693.35,691.67,0.28915523]
[1736671055082,0.26524926,693.34,691.67,0.28915523]
[1736671055479,0.28846292,693.33,691.67,0.28915523]
[1736671055680,1.34552893,693.32,691.67,0.28915523]
[1736671055879,0.26524926,693.31,691.67,0.28915523]
[1736671056077,0.5537205,693.31,691.67,0.28915523]
[1736671056405,0.26524926,693.3,691.67,0.28915523]
[1736671056894,0.28847124,693.31,691.67,0.28915523]
[1736671057176,0.26526029,693.3,691.67,0.28915523]
[1736671057983,0.28847956,693.29,691.67,0.28915523]
[1736671058180,0.26526029,693.28,691.67,0.28915523]
[1736671058381,0.28848789,693.27,691.67,0.28915523]
[1736671058683,0.26526029,693.26,691.67,0.28915523]
[1736671059375,0.28849621,693.25,691.67,0.28915523]
[1736671069589,0.26532126,693.24,691.67,0.28915523]
[1736671070488,0.26533103,693.23,691.67,0.28915523]
[1736671070685,0.2653352,693.22,691.67,0.28915523]
[1736671070882,0.28849621,693.25,691.71,1.29592255]
[1736671070883,0.2653352,693.21,691.71,1.29592255]
[1736671071090,0.2653352,693.2,691.71,1.29592255]
[1736671071285,0.2653352,693.19,691.71,1.29592255]
[1736671071491,1.08027967,693.23,691.71,1.29592255]
[1736671071492,0.2653352,693.18,691.71,1.29592255]
[1736671071691,0.2653352,693.17,691.71,1.29592255]
[1736671071892,0.2653352,693.16,691.71,1.29592255]
[1736671072190,0.28849621,693.25,691.67,0.28915523]
[1736671072191,0.2653352,693.15,691.67,0.28915523]
[1736671072399,0.2653352,693.14,691.67,0.28915523]
[1736671072593,0.2653352,693.13,691.67,0.28915523]
[1736671072795,0.2653352,693.12,691.67,0.28915523]
[1736671073022,0.2653352,693.11,691.67,0.28915523]
[1736671073295,1.36877588,693.25,691.67,0.28915523]
[1736671073296,0.26535484,693.1,691.67,0.28915523]
[1736671073595,1.08027967,693.21,691.67,0.28915523]
[1736671073793,0.26535304,693.2,691.67,0.28915523]
[1736671073992,0.28852534,693.18,691.67,0.28915523]
[1736671074192,0.2653446,693.17,691.67,0.28915523]
[1736671075694,0.28853783,693.15,691.67,0.28915523]
[1736671075891,0.2653446,693.14,691.67,0.28915523]
[1736671076093,0.28853783,693.15,691.67,0.28915523]
[1736671076292,0.265329,693.14,691.67,0.28915523]
[1736671076489,0.28853783,693.15,691.67,0.28915523]
[1736671108015,1.08027967,693.07,691.67,0.28915523]
[1736671108219,0.2885753,693.06,691.67,0.28915523]
[1736671108614,1.08027967,693.04,691.67,0.28915523]
[1736671109112,0.28858779,693.03,691.67,0.28915523]
[1736671113122,1.08027967,692.99,691.77,1.29592255]
[1736671113324,1.36888412,692.99,691.77,1.29592255]
[1736671114423,0.28860445,692.99,691.91,1.29592255]
[1736671115518,0.28860445,692.99,691.7,1.29592255]
[1736671117425,0.28860445,692.99,691.72,1.29592255]
[1736671121831,0.28860445,692.99,691.67,0.28915523]
[1736671127129,0.28860445,692.99,691.67,3.00024087]
[1736671128531,0.28860445,692.99,691.67,0.28915523]
[1736671131437,0.2840034,692.99,691.67,0.28915523]
[1736671134842,0.2840034,692.99,691.84,1.29592255]
[1736671137439,0.2840034,692.99,691.97,1.29592255]
[1736671138243,0.2840034,692.99,691.9,0.88652547]
[1736671138537,0.2840034,692.99,691.87,1.29592255]
[1736671138538,0.2840034,692.99,691.88,5.7198859]
[1736671138735,0.2840034,692.99,691.89,2.71108564]
[1736671140643,0.2840034,692.99,691.88,2.71108564]
[1736671144139,0.2840034,692.99,691.88,1.82456017]
[1736671144738,0.2840034,692.99,691.87,3.00880026]
[1736671145248,0.2840034,692.99,691.75,1.82456017]
[1736671145445,0.2840034,692.99,691.74,2.70911938]
[1736671145746,0.2840034,692.99,691.76,1.29592255]
[1736671146745,0.2840034,692.99,691.76,4.00504193]
[1736671147046,0.2840034,692.99,691.77,0.88455921]
[1736671147548,0.2840034,692.99,691.77,2.18048176]
[1736671147848,0.2840034,692.99,691.78,0.28910925]
[1736671148348,0.2840034,692.99,691.83,1.29592255]
[1736671149146,0.2840034,692.99,691.84,1.29592255]
[1736671150446,0.2840034,692.99,691.81,0.88455921]
[1736671150652,0.2840034,692.99,691.8,2.70911938]
[1736671151150,0.2840034,692.99,691.81,0.28909671]
[1736671152351,0.2840034,692.99,691.88,1.29592255]
[1736671153857,0.2840034,692.99,691.9,1.29592255]
[1736671154355,0.2840034,692.99,691.97,1.29592255]
[1736671155363,0.2840034,692.99,691.98,1.29592255]
[1736671156554,0.2840034,692.99,692.02,1.29592255]
[1736671157757,0.2840034,692.99,691.99,1.29592255]
[1736671159053,0.2840034,692.99,692.01,1.29592255]
[1736671160159,0.2840034,692.99,691.98,1.82086775]
[1736671160360,0.2840034,692.99,691.93,1.82086775]
[1736671161162,0.2840034,692.99,691.93,3.00880026]
[1736671161369,0.2840034,692.99,691.94,1.29592255]
[1736671162964,0.2840034,692.99,691.87,1.29592255]
[1736671163664,0.2840034,692.99,691.56,1.29592255]
[1736671167468,0.2840034,692.99,691.67,1.29592255]
[1736671168467,0.2840034,692.99,691.68,1.29592255]
[1736671169269,0.2840034,692.99,691.69,1.29592255]
[1736671170764,0.2840034,692.99,691.68,1.29592255]
[1736671171770,0.2840034,692.99,691.71,1.29592255]
[1736671172672,0.2840034,692.99,691.73,1.29592255]
[1736671173571,0.2840034,692.99,691.97,1.29592255]
[1736671174668,0.2840034,692.99,691.98,1.29592255]
[1736671175570,0.2840034,692.99,691.9,1.82140132]
[1736671175775,0.2840034,692.99,691.89,4.82508022]
[1736671176875,0.2840034,692.99,691.89,1.82140132]
[1736671177074,0.2840034,692.99,691.82,4.82508022]
[1736671178090,0.2840034,692.99,691.82,1.82140132]
[1736671178275,0.2840034,692.99,691.81,2.11049803]
[1736671180175,0.2840034,692.99,691.81,0.28909671]
[1736671222604,0.2840034,692.99,691.85,1.29592255]
[1736671224405,0.2840034,692.99,691.86,1.29592255]
[1736671225232,0.2840034,692.99,691.84,1.29592255]
[1736671226799,0.2840034,692.99,691.84,2.18159558]
[1736671227006,0.2840034,692.99,691.87,1.29592255]
[1736671229305,0.2840034,692.99,691.86,2.18159558]
[1736671229504,0.2840034,692.99,691.86,5.18527448]
[1736671229703,0.2840034,692.99,691.87,2.70820337]
[1736671230308,0.2840034,692.99,691.91,1.29592255]
[1736671231307,0.2840034,692.99,691.9,1.29592255]
[1736671231707,0.2840034,692.99,691.9,2.18159558]
[1736671232612,0.2840034,692.99,691.9,5.18527448]
[1736671232805,0.2840034,692.99,691.91,2.70820337]
[1736671234613,0.2840034,692.99,691.89,1.82253034]
[1736671234805,0.2840034,692.99,691.88,3.0036789]
[1736671235809,0.2840034,692.99,691.81,0.28909671]
[1736671270837,0.2840034,692.99,691.81,1.58501926]
[1736671272136,0.2840034,692.99,691.82,1.29592255]
[1736671272735,0.2840034,692.99,691.81,0.28909671]
[1736671273634,0.2840034,692.99,691.82,1.29592255]
[1736671275131,0.2840034,692.99,691.85,1.29592255]
[1736671276034,0.2840034,692.99,691.91,1.29592255]
[1736671278539,0.2840034,692.99,691.93,1.29592255]
[1736671279441,0.2840034,692.99,692.07,1.29592255]
[1736671283148,0.2840034,692.99,692.12,1.29592255]
[1736671284343,0.2840034,692.99,692.1,1.29592255]
[1736671285549,0.2840034,692.99,692.06,3.0036789]
[1736671286447,0.2840034,692.99,691.82,1.82487832]
[1736671286648,0.2840034,692.99,691.78,3.0036789]
[1736671287877,0.2840034,692.99,691.58,1.29592255]
[1736671288550,0.2840034,692.99,691.51,1.29592255]
[1736671289451,0.2840034,692.99,691.52,1.29592255]
[1736671290250,0.2840034,692.99,691.51,1.82483577]
[1736671290449,0.2840034,692.99,691.52,3.0036789]
[1736671290749,0.2840034,692.99,691.53,1.82483577]
[1736671291950,0.2840034,692.99,691.52,1.82483577]
[1736671294457,0.2840034,692.99,691.52,2.71119237]
[1736671294759,0.2840034,692.99,691.56,1.29592255]
[1736671295563,0.2840034,692.99,691.52,0.8863566]
[1736671295564,0.2840034,692.99,691.68,1.29592255]
[1736671296369,0.2840034,692.99,691.71,1.29592255]
[1736671297265,0.2840034,692.99,691.74,1.29592255]
[1736671297866,0.2840034,692.99,691.9,1.29592255]
[1736671298867,0.2840034,692.99,691.92,1.29592255]
[1736671299764,0.2840034,692.99,691.94,1.29592255]
[1736671301983,0.2840034,692.99,691.87,3.0036789]
[1736671302569,0.2840034,692.99,691.82,1.82551819]
[1736671302773,0.2840034,692.99,691.83,1.29592255]
[1736671303670,0.2840034,692.99,691.79,3.0036789]
[1736671303671,0.2840034,692.99,691.79,4.29960145]
[1736671303871,0.2840034,692.99,691.79,1.29592255]
[1736671304870,0.2840034,692.99,691.71,1.82491328]
[1736671304871,0.2840034,692.99,691.78,1.29592255]
[1736671309081,0.2840034,692.99,691.78,4.29960145]
[1736671309374,0.2840034,692.99,691.79,1.82491328]
[1736671309800,0.2840034,692.99,691.79,2.71038035]
[1736671310169,0.2840034,692.99,691.79,2.71032616]
[1736671310576,0.2840034,692.99,691.79,5.71400506]
[1736671310775,0.2840034,692.99,691.8,2.71032616]
[1736671312083,0.2840034,692.99,691.82,1.29592255]
[1736671312379,0.2840034,692.99,691.83,0.28908835]
[1736671314377,0.2840034,692.99,691.87,1.29592255]
[1736671316677,0.2840034,692.99,692.02,1.29592255]
[1736671317280,0.2840034,692.99,692.09,1.29592255]
[1736671318385,0.2840034,692.99,692.1,1.29592255]
[1736671318585,1.50715139,693.49,692.1,1.29592255]
[1736671318784,0.28840053,693.48,692.1,1.29592255]
[1736671320086,0.26519596,693.47,692.1,1.29592255]
[1736671320389,0.28840053,693.48,692.1,1.29592255]
[1736671321087,0.28840053,693.48,692.21,1.29592255]
[1736671322088,0.28840053,693.48,692.2,1.29592255]
[1736671324989,0.28840053,693.48,692.18,1.82491328]
[1736671325787,0.28840053,693.48,692.05,4.82859218]
[1736671325987,0.28840053,693.48,692.06,2.70884935]
[1736671326386,0.28840053,693.48,692.06,1.82491328]
[1736671326586,0.28840053,693.48,692.06,0.88377829]
[1736671326792,0.28840053,693.48,692.06,0.28899228]
[1736671326994,0.28840053,693.48,692.06,2.99768385]
[1736671327293,0.28840053,693.48,692.06,0.28899228]
[1736671343304,1.3686802,693.48,692.06,0.28899228]
[1736671343700,1.08027967,693.47,692.06,0.28899228]
[1736671343898,0.28840884,693.46,692.06,0.28899228]
[1736671344500,1.36868851,693.46,692.06,0.28899228]
[1736671345104,1.08027967,693.45,692.06,0.28899228]
[1736671345704,0.28841716,693.44,692.06,0.28899228]
[1736671348105,0.28841716,693.44,692.07,1.29592255]
[1736671348807,0.28841716,693.44,692.11,1.29592255]
[1736671349610,0.28841716,693.44,692.15,1.29592255]
[1736671353019,0.28841716,693.44,692.17,1.29592255]
[1736671353718,0.28841716,693.44,692.19,1.29592255]
[1736671354918,0.28841716,693.44,692.2,1.29592255]
[1736671355918,0.28841716,693.44,692.21,1.29592255]
[1736671356918,0.28841716,693.44,692.2,1.29592255]
[1736671358617,0.28841716,693.44,692.21,1.29592255]
[1736671359317,0.28841716,693.44,692.2,1.82491328]
[1736671359512,0.28841716,693.44,692.19,4.82859218]
[1736671364522,0.28841716,693.44,692.2,1.29592255]
[1736671364721,0.28841716,693.44,692.2,6.12451473]
[1736671364918,0.28841716,693.44,692.21,1.82491328]
[1736671366222,0.28841716,693.44,692.21,4.82859218]
[1736671366622,0.28841716,693.44,692.22,1.82491328]
[1736671367022,0.28841716,693.44,692.21,3.0036789]
[1736671367718,0.28841716,693.44,692.16,1.29592255]
[1736671368522,0.28841716,693.44,692.12,1.82223321]
[1736671368719,0.28841716,693.44,692.11,3.0036789]
[1736671369518,0.28841716,693.44,692.12,1.29592255]
[1736671369723,0.28841716,693.44,692.12,3.11815576]
[1736671370125,0.28841716,693.44,692.13,1.82223321]